[Event "Eurasia Open Cup 2019"]
[Site "Ekaterinburg"]
[Date "2019.08.07"]
[Round "7.6"]
[White "Ulybin, Mikhail"]
[Black "Bocharov, Ivan"]
[Result "0-1"]
[ECO "B51"]
[WhiteElo "2469"]
[BlackElo "2559"]
[Annotator "ChessBase"]
[PlyCount "70"]
[EventDate "2019.07.31"]
[EventType "swiss"]
[EventCountry "RUS"]
[SourceTitle "playchess.com"]
[Source "ChessBase"]
[SourceQuality "1"]
[TimeControl "5400+30"]

1. e4 {[%emt 0:09:45]} c5 {[%emt 0:00:00]} 2. Nf3 {[%emt 0:01:04]} d6 {[%emt 0:00:00]} 3. Bb5+ {[%emt 0:01:38]} Nd7 {[%emt 0:00:00]} 4. O-O {[%emt 0:02:46]} a6 {[%emt 0:00:00]} 5. Bd3 {[%emt 0:01:19]} Ngf6 {[%emt 0:00:00]} 6. c3 {[%emt 0:01:01]} b5 {[%emt 0:00:23]} 7. Bc2 {[%emt 0:08:18]} Bb7 {[%emt 0:00:00]} 8. Re1 {[%emt 0:06:40]} c4 {[%emt 0:00:00]} 9. b4 {[%emt 0:11:47]} g6 {[%emt 0:04:37]} 10. a4 {[%emt 0:02:36]} Bg7 {[%emt 0:03:36]} 11. axb5 {[%emt 0:05:07]} axb5 {[%emt 0:00:01]} 12. Rxa8 {[%emt 0:00:03]} Qxa8 {[%emt 0:02:02]} 13. Na3 {[%emt 0:03:26]} Bxe4 {[%emt 0:02:42]} 14. Nxb5 {[%emt 0:29:16]} Qb7 {[%emt 0:01:16]} 15. Ng5 {[%emt 0:06:18]} d5 {[%emt 0:18:54]} 16. Nxe4 {[%emt 0:02:22]} Nxe4 {[%emt 0:00:20]} 17. Na3 {[%emt 0:00:59]} f5 {[%emt 0:01:54]} 18. Qe2 {[%emt 0:02:02]} O-O {[%emt 0:01:43]} 19. Kh1 {[%emt 0:02:17]} e5 {[%emt 0:10:53]} 20. f3 {[%emt 0:00:00]} Nd6 {[%emt 0:01:51]} 21. d3 {[%emt 0:00:01]} cxd3 {[%emt 0:04:29]} 22. Bxd3 {[%emt 0:01:11]} e4 {[%emt 0:00:10]} 23. Ba6 {[%emt 0:00:00]} Qc6 {[%emt 0:00:23]} 24. Bf4 {[%emt 0:00:51]} Be5 {[%emt 0:01:59]} 25. Bh6 {[%emt 0:00:34]} Ra8 {[%emt 0:00:44]} 26. Bb5 {[%emt 0:00:27]} Nxb5 {[%emt 0:00:00]} 27. Nxb5 {[%emt 0:00:27]} Bxc3 {[%emt 0:00:01]} 28. Rc1 {[%emt 0:00:38]} Ra1 {[%emt 0:00:12]} 29. Rxa1 {[%emt 0:00:36]} Bxa1 {[%emt 0:00:01]} 30. h3 {[%emt 0:00:28]} Be5 {[%emt 0:00:11]} 31. Be3 {[%emt 0:00:25]} f4 {[%emt 0:01:13]} 32. Bd4 {[%emt 0:00:25]} e3 {[%emt 0:00:01]} 33. g3 {[%emt 0:00:35]} Bxd4 {[%emt 0:00:31]} 34. Nxd4 {[%emt 0:00:07]} Qc1+ {[%emt 0:00:01]} 35. Kg2 {[%emt 0:00:17]} Qd2 {[%emt 0:00:31]} 0-1

[Event "Eurasia Open Cup 2019"]
[Site "Ekaterinburg"]
[Date "2019.08.07"]
[Round "7.7"]
[White "Moiseenko, Vadim"]
[Black "Kozionov, Kirill"]
[Result "1-0"]
[ECO "B12"]
[WhiteElo "2523"]
[BlackElo "2454"]
[Annotator "ChessBase"]
[PlyCount "57"]
[EventDate "2019.07.31"]
[EventType "swiss"]
[EventCountry "RUS"]
[SourceTitle "playchess.com"]
[Source "ChessBase"]
[SourceQuality "1"]
[TimeControl "5400+30"]

1. e4 {[%emt 0:06:43]} c6 {[%emt 0:00:00]} 2. e5 {[%emt 0:00:06]} d5 {[%emt 0:07:05]} 3. d4 {[%emt 0:00:35]} Bf5 {[%emt 0:00:40]} 4. Nc3 {[%emt 0:01:29]} e6 {[%emt 0:01:35]} 5. g4 {[%emt 0:00:05]} Bg6 {[%emt 0:00:08]} 6. Nge2 {[%emt 0:00:03]} h6 {[%emt 0:19:21]} 7. Be3 {[%emt 0:04:36]} Ne7 {[%emt 0:06:58]} 8. Bg2 {[%emt 0:05:43]} Bh7 {[%emt 0:01:53]} 9. f4 {[%emt 0:01:08]} Ng6 {[%emt 0:01:09]} 10. O-O {[%emt 0:01:47]} Nh4 {[%emt 0:00:45]} 11. Bh3 {[%emt 0:05:08]} h5 {[%emt 0:24:11]} 12. f5 {[%emt 0:00:15]} hxg4 {[%emt 0:00:21]} 13. fxe6 {[%emt 0:00:06]} gxh3 {[%emt 0:00:23]} 14. exf7+ {[%emt 0:02:22]} Kd7 {[%emt 0:00:05]} 15. Ng3 {[%emt 0:01:01]} g6 {[%emt 0:10:02]} 16. Rf6 {[%emt 0:05:56]} Be7 {[%emt 0:05:18]} 17. Bg5 {[%emt 0:01:59]} Bxf6 {[%emt 0:00:45]} 18. Bxf6 {[%emt 0:00:04]} Qf8 {[%emt 0:00:04]} 19. e6+ {[%emt 0:01:14]} Kxe6 {[%emt 0:02:02]} 20. Bxh4 {[%emt 0:01:31]} Qxf7 {[%emt 0:00:34]} 21. Qg4+ {[%emt 0:04:06]} Kd6 {[%emt 0:00:05]} 22. Rf1 {[%emt 0:04:15]} Qe8 {[%emt 0:00:23]} 23. Rf6+ {[%emt 0:01:09]} Kc7 {[%emt 0:00:06]} 24. Re6 {[%emt 0:00:32]} Qf8 {[%emt 0:01:16]} 25. Re7+ {[%emt 0:05:49]} Kb6 {[%emt 0:00:07]} 26. Na4+ {[%emt 0:00:19]} Ka5 {[%emt 0:00:05]} 27. Nc5 {[%emt 0:00:19]} b6 {[%emt 0:04:42]} 28. Nb7+ {[%emt 0:01:22]} Ka4 {[%emt 0:00:31]} 29. Qd1 {[%emt 0:00:18]} 1-0

[Event "Eurasia Open Cup 2019"]
[Site "Ekaterinburg"]
[Date "2019.08.07"]
[Round "7.8"]
[White "Khanin, Semen"]
[Black "Kabanov, Nikolai"]
[Result "0-1"]
[ECO "B32"]
[WhiteElo "2517"]
[BlackElo "2450"]
[Annotator "ChessBase"]
[PlyCount "146"]
[EventDate "2019.07.31"]
[EventType "swiss"]
[EventCountry "RUS"]
[SourceTitle "playchess.com"]
[Source "ChessBase"]
[SourceQuality "1"]
[TimeControl "5400+30"]

1. e4 {[%emt 0:00:00]} c5 {[%emt 0:00:00]} 2. Nf3 {[%emt 0:00:00]} Nc6 {[%emt 0:00:00]} 3. d4 {[%emt 0:00:00]} cxd4 {[%emt 0:00:00]} 4. Nxd4 {[%emt 0:00:00]} e5 {[%emt 0:00:01]} 5. Nb5 {[%emt 0:00:00]} d6 {[%emt 0:00:14]} 6. N1c3 {[%emt 0:00:05]} a6 {[%emt 0:00:00]} 7. Na3 {[%emt 0:00:38]} Be7 {[%emt 0:00:00]} 8. Nc4 {[%emt 0:04:55]} b5 {[%emt 0:00:22]} 9. Ne3 {[%emt 0:00:05]} Nf6 {[%emt 0:00:12]} 10. g3 {[%emt 0:02:11]} O-O {[%emt 0:00:26]} 11. Bg2 {[%emt 0:02:09]} b4 {[%emt 0:00:34]} 12. Ncd5 {[%emt 0:00:59]} Nxd5 {[%emt 0:00:09]} 13. Nxd5 {[%emt 0:01:49]} Bg5 {[%emt 0:00:40]} 14. Bxg5 {[%emt 0:05:12]} Qxg5 {[%emt 0:00:19]} 15. a3 {[%emt 0:07:33]} bxa3 {[%emt 0:02:36]} 16. Rxa3 {[%emt 0:00:04]} Rb8 {[%emt 0:00:09]} 17. h4 {[%emt 0:01:38]} Qd8 {[%emt 0:03:04]} 18. b3 {[%emt 0:01:25]} Nd4 {[%emt 0:18:47]} 19. O-O {[%emt 0:05:48]} Bb7 {[%emt 0:02:17]} 20. Ne3 {[%emt 0:00:31]} Qc7 {[%emt 0:01:46]} 21. Ra4 {[%emt 0:16:08]} Bc6 {[%emt 0:13:20]} 22. Rxd4 {[%emt 0:07:35]} exd4 {[%emt 0:00:16]} 23. Qxd4 {[%emt 0:00:04]} Bd7 {[%emt 0:14:29]} 24. Rd1 {[%emt 0:03:15]} Rfd8 {[%emt 0:03:52]} 25. Qxd6 {[%emt 0:02:14]} Qxd6 {[%emt 0:00:12]} 26. Rxd6 {[%emt 0:00:06]} Bb5 {[%emt 0:00:55]} 27. e5 {[%emt 0:02:24]} a5 {[%emt 0:03:56]} 28. c4 {[%emt 0:12:00]} Rxd6 {[%emt 0:07:10]} 29. exd6 {[%emt 0:00:41]} Bd7 {[%emt 0:00:00]} 30. c5 {[%emt 0:00:08]} Rc8 {[%emt 0:00:03]} 31. c6 {[%emt 0:00:04]} Bxc6 {[%emt 0:00:19]} 32. Nf5 {[%emt 0:00:03]} Bxg2 {[%emt 0:05:36]} 33. Ne7+ {[%emt 0:00:08]} Kf8 {[%emt 0:00:04]} 34. Nxc8 {[%emt 0:00:06]} Bh3 {[%emt 0:00:32]} 35. Ne7 {[%emt 0:01:10]} Bd7 {[%emt 0:06:08]} 36. f4 {[%emt 0:10:52]} Ke8 {[%emt 0:02:20]} 37. Kf2 {[%emt 0:12:46]} Be6 {[%emt 0:01:29]} 38. Nc6 {[%emt 0:00:29]} Bxb3 {[%emt 0:00:13]} 39. Nxa5 {[%emt 0:01:27]} Bd5 {[%emt 0:00:07]} 40. Ke3 {[%emt 0:00:00]} Kd7 {[%emt 0:00:06]} 41. Kd4 {[%emt 0:01:18]} Kxd6 {[%emt 0:00:09]} 42. g4 {[%emt 0:00:49]} Be6 {[%emt 0:05:17]} 43. Nb7+ {[%emt 0:01:03]} Kc7 {[%emt 0:00:00]} 44. Nc5 {[%emt 0:00:48]} Bxg4 {[%emt 0:00:27]} 45. Kd5 {[%emt 0:01:04]} Kd8 {[%emt 0:00:32]} 46. Ke5 {[%emt 0:00:39]} Ke7 {[%emt 0:01:11]} 47. Ke4 {[%emt 0:00:05]} Kf6 {[%emt 0:01:02]} 48. Ke3 {[%emt 0:00:53]} Kf5 {[%emt 0:00:04]} 49. Ne4 {[%emt 0:00:00]} Bh5 {[%emt 0:00:28]} 50. Nd6+ {[%emt 0:00:00]} Kg4 {[%emt 0:00:24]} 51. Ne8 {[%emt 0:00:00]} Kxh4 {[%emt 0:00:35]} 52. Nxg7 {[%emt 0:00:00]} Bg4 {[%emt 0:00:43]} 53. Kf2 {[%emt 0:00:41]} Bd7 {[%emt 0:00:00]} 54. f5 {[%emt 0:00:52]} Kg5 {[%emt 0:01:52]} 55. f6 {[%emt 0:01:07]} Kxf6 {[%emt 0:00:06]} 56. Nh5+ {[%emt 0:00:32]} Kg5 {[%emt 0:00:00]} 57. Ng3 {[%emt 0:00:02]} Bc6 {[%emt 0:01:00]} 58. Nf1 {[%emt 0:00:29]} h5 {[%emt 0:00:42]} 59. Nh2 {[%emt 0:00:04]} Kf4 {[%emt 0:00:00]} 60. Nf1 {[%emt 0:00:00]} h4 {[%emt 0:00:20]} 61. Ne3 {[%emt 0:01:00]} h3 {[%emt 0:00:55]} 62. Nf1 {[%emt 0:00:00]} Bg2 {[%emt 0:00:59]} 63. Ng3 {[%emt 0:00:00]} Kg4 {[%emt 0:00:00]} 64. Kg1 {[%emt 0:00:58]} f5 {[%emt 0:02:58]} 65. Kf2 {[%emt 0:00:04]} f4 {[%emt 0:01:38]} 66. Kg1 {[%emt 0:00:57]} Kf3 {[%emt 0:00:40]} 67. Nh5 {[%emt 0:00:52]} Ke3 {[%emt 0:00:17]} 68. Nf6 {[%emt 0:00:18]} Ke2 {[%emt 0:01:35]} 69. Ng4 {[%emt 0:01:38]} Be4 {[%emt 0:01:09]} 70. Nf6 {[%emt 0:01:15]} Bf5 {[%emt 0:00:20]} 71. Nh5 {[%emt 0:00:16]} f3 {[%emt 0:00:32]} 72. Ng3+ {[%emt 0:00:19]} Ke1 {[%emt 0:00:07]} 73. Nh1 {[%emt 0:00:17]} Be6 {[%emt 0:00:32]} 0-1

[Event "Eurasia Open Cup 2019"]
[Site "Ekaterinburg"]
[Date "2019.08.07"]
[Round "7.9"]
[White "Popov, Mikhail"]
[Black "Afanasiev, Nikita"]
[Result "0-1"]
[ECO "B94"]
[WhiteElo "2397"]
[BlackElo "2514"]
[Annotator "ChessBase"]
[PlyCount "92"]
[EventDate "2019.07.31"]
[EventType "swiss"]
[EventCountry "RUS"]
[SourceTitle "playchess.com"]
[Source "ChessBase"]
[SourceQuality "1"]
[TimeControl "5400+30"]

1. e4 {[%emt 0:00:00]} c5 {[%emt 0:00:00]} 2. Nf3 {[%emt 0:00:00]} d6 {[%emt 0:00:00]} 3. d4 {[%emt 0:00:00]} Nf6 {[%emt 0:00:00]} 4. Nc3 {[%emt 0:00:00]} cxd4 {[%emt 0:00:18]} 5. Nxd4 {[%emt 0:00:00]} a6 {[%emt 0:00:00]} 6. Bg5 {[%emt 0:01:49]} Nbd7 {[%emt 0:01:28]} 7. Qe2 {[%emt 0:01:11]} h6 {[%emt 0:00:31]} 8. Bh4 {[%emt 0:00:39]} e6 {[%emt 0:15:42]} 9. f4 {[%emt 0:05:31]} g5 {[%emt 0:10:05]} 10. fxg5 {[%emt 0:01:38]} hxg5 {[%emt 0:00:12]} 11. Bxg5 {[%emt 0:01:40]} Be7 {[%emt 0:01:34]} 12. O-O-O {[%emt 0:14:13]} Qc7 {[%emt 0:09:20]} 13. g3 {[%emt 0:07:00]} b5 {[%emt 0:00:32]} 14. Bg2 {[%emt 0:02:18]} Bb7 {[%emt 0:01:28]} 15. e5 {[%emt 0:10:09]} dxe5 {[%emt 0:09:19]} 16. Bxb7 {[%emt 0:02:53]} Qxb7 {[%emt 0:00:49]} 17. Nb3 {[%emt 0:07:54]} b4 {[%emt 0:03:23]} 18. Bxf6 {[%emt 0:27:41]} Nxf6 {[%emt 0:01:09]} 19. Nb1 {[%emt 0:01:09]} Qb5 {[%emt 0:28:54]} 20. Qg2 {[%emt 0:02:42]} Rc8 {[%emt 0:00:49]} 21. N1d2 {[%emt 0:01:45]} a5 {[%emt 0:00:49]} 22. Kb1 {[%emt 0:04:02]} Nd5 {[%emt 0:03:21]} 23. Rhe1 {[%emt 0:02:48]} a4 {[%emt 0:01:04]} 24. Nc1 {[%emt 0:00:05]} a3 {[%emt 0:01:53]} 25. Ncb3 {[%emt 0:02:53]} Rxc2 {[%emt 0:01:26]} 26. Kxc2 {[%emt 0:01:04]} Qc6+ {[%emt 0:00:05]} 27. Nc4 {[%emt 0:00:34]} Ne3+ {[%emt 0:00:32]} 28. Rxe3 {[%emt 0:00:05]} Qxg2+ {[%emt 0:00:02]} 29. Rd2 {[%emt 0:00:08]} Qf1 {[%emt 0:03:13]} 30. Nba5 {[%emt 0:02:01]} axb2 {[%emt 0:00:12]} 31. Kxb2 {[%emt 0:00:13]} Bg5 {[%emt 0:01:19]} 32. Nd6+ {[%emt 0:00:51]} Kf8 {[%emt 0:00:54]} 33. Nac4 {[%emt 0:00:54]} Bxe3 {[%emt 0:00:00]} 34. Nxe3 {[%emt 0:00:04]} Qf3 {[%emt 0:00:37]} 35. Ndc4 {[%emt 0:00:37]} Kg7 {[%emt 0:00:00]} 36. Kb3 {[%emt 0:00:39]} Rb8 {[%emt 0:00:25]} 37. h4 {[%emt 0:00:40]} Qe4 {[%emt 0:00:19]} 38. Rd1 {[%emt 0:00:05]} Rc8 {[%emt 0:01:26]} 39. Rd7 {[%emt 0:00:59]} Qb1+ {[%emt 0:00:59]} 40. Ka4 {[%emt 0:00:00]} Qxa2+ {[%emt 0:00:05]} 41. Kxb4 {[%emt 0:00:00]} Qb1+ {[%emt 0:00:05]} 42. Kc3 {[%emt 0:00:41]} Qc1+ {[%emt 0:00:08]} 43. Kb4 {[%emt 0:00:08]} Qe1+ {[%emt 0:01:10]} 44. Kb3 {[%emt 0:00:49]} Qc1 {[%emt 0:01:30]} 45. Rd1 {[%emt 0:00:55]} Rb8+ {[%emt 0:00:00]} 46. Ka2 {[%emt 0:00:36]} Qc3 {[%emt 0:00:00]} 0-1

[Event "Eurasia Open Cup 2019"]
[Site "Ekaterinburg"]
[Date "2019.08.07"]
[Round "7.10"]
[White "Kanter, Eduard"]
[Black "Burmakin, Vladimir"]
[Result "1/2-1/2"]
[ECO "E06"]
[WhiteElo "2384"]
[BlackElo "2506"]
[Annotator "ChessBase"]
[PlyCount "40"]
[EventDate "2019.07.31"]
[EventType "swiss"]
[EventCountry "RUS"]
[SourceTitle "playchess.com"]
[Source "ChessBase"]
[SourceQuality "1"]
[TimeControl "5400+30"]

1. d4 {[%emt 0:00:00]} c6 {[%emt 0:00:00]} 2. c4 {[%emt 0:00:00]} Nf6 {[%emt 0:00:00]} 3. Nc3 {[%emt 0:00:00]} d5 {[%emt 0:00:00]} 4. Nf3 {[%emt 0:00:00]} a6 {[%emt 0:00:08]} 5. a4 {[%emt 0:00:11]} e6 {[%emt 0:00:00]} 6. g3 {[%emt 0:00:11]} Bb4 {[%emt 0:06:11]} 7. Bg2 {[%emt 0:00:47]} O-O {[%emt 0:00:44]} 8. O-O {[%emt 0:00:09]} a5 {[%emt 0:00:15]} 9. Nd2 {[%emt 0:10:39]} b6 {[%emt 0:07:04]} 10. cxd5 {[%emt 0:07:32]} cxd5 {[%emt 0:02:42]} 11. e4 {[%emt 0:00:38]} Ba6 {[%emt 0:06:43]} 12. Re1 {[%emt 0:04:01]} Nc6 {[%emt 0:00:36]} 13. e5 {[%emt 0:06:49]} Nd7 {[%emt 0:01:12]} 14. Nf1 {[%emt 0:02:54]} Rc8 {[%emt 0:05:31]} 15. Qg4 {[%emt 0:03:18]} Re8 {[%emt 0:01:33]} 16. Bh6 {[%emt 0:11:20]} Bf8 {[%emt 0:01:01]} 17. Bg5 {[%emt 0:00:10]} Be7 {[%emt 0:12:21]} 18. Bh6 {[%emt 0:00:16]} Bf8 {[%emt 0:06:16]} 19. Bg5 {[%emt 0:01:16]} Be7 {[%emt 0:11:25]} 20. Bh6 {[%emt 0:00:16]} Bf8 {[%emt 0:00:07]} 1/2-1/2

[Event "Eurasia Open Cup 2019"]
[Site "Ekaterinburg"]
[Date "2019.08.07"]
[Round "7.11"]
[White "Gleizerov, Evgeny"]
[Black "Pogromsky, Mikhail"]
[Result "1/2-1/2"]
[ECO "D85"]
[WhiteElo "2498"]
[BlackElo "2414"]
[Annotator "ChessBase"]
[PlyCount "148"]
[EventDate "2019.07.31"]
[EventType "swiss"]
[EventCountry "RUS"]
[SourceTitle "playchess.com"]
[Source "ChessBase"]
[SourceQuality "1"]
[TimeControl "5400+30"]

1. d4 {[%emt 0:00:00]} Nf6 {[%emt 0:00:00]} 2. c4 {[%emt 0:00:00]} g6 {[%emt 0:00:00]} 3. Nc3 {[%emt 0:00:00]} d5 {[%emt 0:00:00]} 4. cxd5 {[%emt 0:00:00]} Nxd5 {[%emt 0:00:00]} 5. Bd2 {[%emt 0:00:00]} Bg7 {[%emt 0:00:00]} 6. e4 {[%emt 0:00:00]} Nb6 {[%emt 0:00:06]} 7. Be3 {[%emt 0:00:00]} O-O {[%emt 0:00:08]} 8. h3 {[%emt 0:00:00]} e5 {[%emt 0:00:15]} 9. Nf3 {[%emt 0:00:06]} exd4 {[%emt 0:00:10]} 10. Bxd4 {[%emt 0:00:05]} Nc6 {[%emt 0:00:08]} 11. Bxg7 {[%emt 0:00:40]} Qxd1+ {[%emt 0:00:05]} 12. Rxd1 {[%emt 0:00:00]} Kxg7 {[%emt 0:00:06]} 13. Bb5 {[%emt 0:06:08]} Nb4 {[%emt 0:00:09]} 14. O-O {[%emt 0:09:46]} a6 {[%emt 0:02:10]} 15. Be2 {[%emt 0:00:52]} Be6 {[%emt 0:00:33]} 16. a3 {[%emt 0:00:00]} Nc6 {[%emt 0:01:05]} 17. Nd4 {[%emt 0:00:01]} Nxd4 {[%emt 0:01:17]} 18. Rxd4 {[%emt 0:00:02]} Rfd8 {[%emt 0:04:44]} 19. Rfd1 {[%emt 0:00:47]} Rxd4 {[%emt 0:00:07]} 20. Rxd4 {[%emt 0:00:00]} g5 {[%emt 0:09:52]} 21. h4 {[%emt 0:14:14]} h6 {[%emt 0:00:38]} 22. g3 {[%emt 0:04:07]} g4 {[%emt 0:14:14]} 23. e5 {[%emt 0:04:03]} Nd7 {[%emt 0:01:42]} 24. Re4 {[%emt 0:08:46]} h5 {[%emt 0:03:33]} 25. f3 {[%emt 0:00:30]} gxf3 {[%emt 0:00:18]} 26. Bxf3 {[%emt 0:00:04]} Kh6 {[%emt 0:00:23]} 27. Rb4 {[%emt 0:02:19]} c6 {[%emt 0:37:10]} 28. Rxb7 {[%emt 0:00:32]} Nxe5 {[%emt 0:00:02]} 29. Be2 {[%emt 0:01:47]} a5 {[%emt 0:00:41]} 30. Kf2 {[%emt 0:06:07]} Rd8 {[%emt 0:07:12]} 31. Ke3 {[%emt 0:03:19]} Rg8 {[%emt 0:05:13]} 32. Ra7 {[%emt 0:02:29]} Ng4+ {[%emt 0:02:31]} 33. Bxg4 {[%emt 0:02:52]} Rxg4 {[%emt 0:01:44]} 34. Kf3 {[%emt 0:00:48]} Rd4 {[%emt 0:00:22]} 35. Rxa5 {[%emt 0:01:02]} Rd2 {[%emt 0:00:08]} 36. Rc5 {[%emt 0:01:14]} Bg4+ {[%emt 0:01:16]} 37. Ke3 {[%emt 0:00:11]} Rxb2 {[%emt 0:00:09]} 38. Rxc6+ {[%emt 0:00:07]} Kg7 {[%emt 0:00:06]} 39. Ne4 {[%emt 0:04:50]} Rb3+ {[%emt 0:03:56]} 40. Rc3 {[%emt 0:01:09]} Rb1 {[%emt 0:00:41]} 41. Nc5 {[%emt 0:02:14]} f5 {[%emt 0:02:05]} 42. Nd3 {[%emt 0:13:03]} Kf6 {[%emt 0:00:09]} 43. Kd4 {[%emt 0:01:56]} Rb8 {[%emt 0:01:41]} 44. a4 {[%emt 0:01:28]} Rd8+ {[%emt 0:01:44]} 45. Kc5 {[%emt 0:01:22]} Rc8+ {[%emt 0:00:17]} 46. Kb4 {[%emt 0:00:00]} Rb8+ {[%emt 0:00:41]} 47. Ka3 {[%emt 0:01:08]} Ke6 {[%emt 0:00:24]} 48. a5 {[%emt 0:02:20]} Kd5 {[%emt 0:00:49]} 49. Nb4+ {[%emt 0:00:17]} Ke4 {[%emt 0:00:19]} 50. a6 {[%emt 0:01:42]} Ra8 {[%emt 0:01:12]} 51. Ka4 {[%emt 0:01:02]} Be2 {[%emt 0:00:13]} 52. Rc6 {[%emt 0:00:28]} f4 {[%emt 0:01:06]} 53. Re6+ {[%emt 0:01:41]} Kf3 {[%emt 0:00:58]} 54. gxf4 {[%emt 0:00:45]} Bxa6 {[%emt 0:00:00]} 55. Nxa6 {[%emt 0:00:00]} Kxf4 {[%emt 0:00:00]} 56. Rg6 {[%emt 0:00:00]} Kf3 {[%emt 0:00:19]} 57. Kb5 {[%emt 0:00:00]} Rf8 {[%emt 0:00:39]} 58. Rg5 {[%emt 0:00:54]} Rf4 {[%emt 0:00:00]} 59. Rxh5 {[%emt 0:00:08]} Kg4 {[%emt 0:00:00]} 60. Rh8 {[%emt 0:00:00]} Rf5+ {[%emt 0:00:18]} 61. Nc5 {[%emt 0:00:34]} Rh5 {[%emt 0:00:03]} 62. Rg8+ {[%emt 0:00:07]} Kxh4 {[%emt 0:00:00]} 63. Kc4 {[%emt 0:00:06]} Rg5 {[%emt 0:00:00]} 64. Rh8+ {[%emt 0:00:06]} Kg4 {[%emt 0:01:03]} 65. Kd4 {[%emt 0:00:04]} Rg7 {[%emt 0:00:48]} 66. Rf8 {[%emt 0:00:26]} Re7 {[%emt 0:00:17]} 67. Ne4 {[%emt 0:00:00]} Ra7 {[%emt 0:00:00]} 68. Nc5 {[%emt 0:00:18]} Re7 {[%emt 0:00:15]} 69. Nd3 {[%emt 0:00:09]} Ra7 {[%emt 0:00:00]} 70. Nf2+ {[%emt 0:00:45]} Kg5 {[%emt 0:00:23]} 71. Ne4+ {[%emt 0:00:08]} Kg4 {[%emt 0:00:03]} 72. Nc3 {[%emt 0:00:00]} Re7 {[%emt 0:01:10]} 73. Nd5 {[%emt 0:00:45]} Ra7 {[%emt 0:00:12]} 74. Ke5 {[%emt 0:00:07]} Ra5 {[%emt 0:00:12]} 1/2-1/2

[Event "Eurasia Open Cup 2019"]
[Site "Ekaterinburg"]
[Date "2019.08.07"]
[Round "7.12"]
[White "Averyanov, Grigori"]
[Black "Drygalov, Andrey"]
[Result "0-1"]
[ECO "D43"]
[WhiteElo "2131"]
[BlackElo "2494"]
[Annotator "ChessBase"]
[PlyCount "128"]
[EventDate "2019.07.31"]
[EventType "swiss"]
[EventCountry "RUS"]
[SourceTitle "playchess.com"]
[Source "ChessBase"]
[SourceQuality "1"]
[TimeControl "5400+30"]

1. Nf3 {[%emt 0:00:00]} d5 {[%emt 0:00:00]} 2. d4 {[%emt 0:00:00]} Nf6 {[%emt 0:00:00]} 3. c4 {[%emt 0:00:00]} e6 {[%emt 0:00:00]} 4. Bg5 {[%emt 0:00:00]} h6 {[%emt 0:00:00]} 5. Bxf6 {[%emt 0:00:00]} Qxf6 {[%emt 0:00:03]} 6. Nc3 {[%emt 0:00:08]} c6 {[%emt 0:00:00]} 7. e3 {[%emt 0:00:00]} Nd7 {[%emt 0:00:19]} 8. cxd5 {[%emt 0:01:00]} exd5 {[%emt 0:00:22]} 9. Bd3 {[%emt 0:00:00]} g6 {[%emt 0:04:35]} 10. O-O {[%emt 0:00:00]} Bg7 {[%emt 0:00:04]} 11. Rb1 {[%emt 0:00:13]} O-O {[%emt 0:01:01]} 12. b4 {[%emt 0:02:58]} Qd6 {[%emt 0:05:16]} 13. Qb3 {[%emt 0:05:48]} Nb6 {[%emt 0:11:32]} 14. b5 {[%emt 0:12:23]} Bg4 {[%emt 0:09:01]} 15. Nd2 {[%emt 0:06:48]} Rfc8 {[%emt 0:08:46]} 16. bxc6 {[%emt 0:07:58]} bxc6 {[%emt 0:01:22]} 17. Rfc1 {[%emt 0:00:53]} Rab8 {[%emt 0:04:19]} 18. Qc2 {[%emt 0:01:27]} Qa3 {[%emt 0:07:31]} 19. Rb3 {[%emt 0:04:58]} Qe7 {[%emt 0:00:17]} 20. Ncb1 {[%emt 0:06:12]} Bf8 {[%emt 0:04:24]} 21. Rc3 {[%emt 0:02:08]} Bd7 {[%emt 0:01:21]} 22. Nf3 {[%emt 0:01:14]} Bg7 {[%emt 0:01:00]} 23. Qd1 {[%emt 0:03:41]} Re8 {[%emt 0:17:12]} 24. Nbd2 {[%emt 0:06:03]} f5 {[%emt 0:03:39]} 25. Nb3 {[%emt 0:04:36]} Na4 {[%emt 0:01:32]} 26. R3c2 {[%emt 0:00:02]} Rec8 {[%emt 0:04:06]} 27. Ba6 {[%emt 0:02:17]} Rc7 {[%emt 0:00:26]} 28. Nc5 {[%emt 0:01:41]} Nxc5 {[%emt 0:00:19]} 29. Rxc5 {[%emt 0:00:03]} Rb6 {[%emt 0:01:12]} 30. Qd3 {[%emt 0:01:50]} Qd6 {[%emt 0:01:48]} 31. a4 {[%emt 0:01:10]} Be8 {[%emt 0:02:02]} 32. a5 {[%emt 0:00:12]} Rb8 {[%emt 0:00:00]} 33. Qc3 {[%emt 0:02:09]} Re7 {[%emt 0:01:34]} 34. Qd2 {[%emt 0:01:47]} g5 {[%emt 0:01:21]} 35. Bd3 {[%emt 0:00:31]} f4 {[%emt 0:01:13]} 36. exf4 {[%emt 0:00:06]} Qxf4 {[%emt 0:00:00]} 37. Qxf4 {[%emt 0:07:56]} gxf4 {[%emt 0:00:13]} 38. Bf1 {[%emt 0:03:14]} Rb4 {[%emt 0:00:10]} 39. Rd1 {[%emt 0:00:02]} Re6 {[%emt 0:01:16]} 40. Rcc1 {[%emt 0:04:05]} Bh5 {[%emt 0:01:38]} 41. Rc3 {[%emt 0:00:25]} Kf8 {[%emt 0:04:52]} 42. g3 {[%emt 0:01:34]} fxg3 {[%emt 0:01:06]} 43. hxg3 {[%emt 0:00:07]} c5 {[%emt 0:00:27]} 44. Bg2 {[%emt 0:00:47]} cxd4 {[%emt 0:01:07]} 45. Rc8+ {[%emt 0:00:41]} Re8 {[%emt 0:00:39]} 46. Rdc1 {[%emt 0:00:51]} d3 {[%emt 0:01:32]} 47. Rxe8+ {[%emt 0:01:00]} Bxe8 {[%emt 0:00:40]} 48. Rd1 {[%emt 0:01:03]} Bb5 {[%emt 0:02:07]} 49. Bf1 {[%emt 0:00:08]} Ra4 {[%emt 0:00:00]} 50. Bxd3 {[%emt 0:00:24]} Rxa5 {[%emt 0:00:00]} 51. Bxb5 {[%emt 0:01:40]} Rxb5 {[%emt 0:00:00]} 52. Rc1 {[%emt 0:00:09]} Rb7 {[%emt 0:00:00]} 53. Rc8+ {[%emt 0:00:40]} Ke7 {[%emt 0:00:32]} 54. Rg8 {[%emt 0:00:00]} Ke6 {[%emt 0:00:41]} 55. Rd8 {[%emt 0:00:41]} Bf6 {[%emt 0:00:09]} 56. Re8+ {[%emt 0:00:00]} Kd6 {[%emt 0:00:15]} 57. Nh2 {[%emt 0:00:45]} Bd4 {[%emt 0:00:59]} 58. Nf3 {[%emt 0:00:20]} Bf6 {[%emt 0:00:06]} 59. Nh2 {[%emt 0:00:00]} a5 {[%emt 0:00:00]} 60. Ra8 {[%emt 0:00:12]} Bc3 {[%emt 0:00:00]} 61. f4 {[%emt 0:01:15]} Kc5 {[%emt 0:02:20]} 62. f5 {[%emt 0:01:09]} Kb4 {[%emt 0:00:29]} 63. Ng4 {[%emt 0:00:18]} h5 {[%emt 0:00:53]} 64. Ne3 {[%emt 0:00:03]} Bd4 {[%emt 0:00:18]} 0-1